lending/lending_fUSD_20250430
["ID","MTS","AMOUNT","RATE_DAILY","PERIOD"]
[359457374,1746033032201,-324.9675,0.000198,2]
[359457375,1746033032215,-68.88443917,0.00019843,2]
[359457376,1746033032262,-131.11556083,0.00019843,2]
[359457377,1746033032277,-280.52558916,0.00019885,2]
[359457378,1746033032318,-919.47441084,0.00019885,2]
[359457379,1746033032333,-300.0,0.00019885,2]
[359457380,1746033032346,-16415.1341,0.00019886,2]
[359457381,1746033032361,-4188.14784296,0.000209,3]
[359457382,1746033032375,-350.0,0.00021,2]
[359457383,1746033032389,-151.0,0.00021687,2]
[359457384,1746033032403,-207.4,0.00021687,2]
[359457385,1746033032416,-4188.14784279,0.00021762,3]
[359457386,1746033032430,-200.0,0.0002178,2]
[359457387,1746033032444,-250.0,0.0002178,2]
[359457388,1746033032458,-151.60603367,0.00021917,2]
[359457389,1746033032472,-150.99,0.00022562,2]
[359457392,1746033032487,-333.41,0.00022562,2]
[359457394,1746033032500,-876.15,0.00022562,2]
[359457396,1746033032513,-4188.14784279,0.00022624,4]
[359457399,1746033032527,-400.0,0.00023,2]
[359457402,1746033032541,-151.0,0.00023056,2]
[359457404,1746033032555,-215.0738,0.00023056,2]
[359457407,1746033032570,-3464.03131766,0.00023486,4]
[359457409,1746033032588,-724.11652513,0.00023486,4]
[359457411,1746033032597,-609.88347487,0.00024348,5]
[359457428,1746033032678,-3578.26436792,0.00024348,5]
[359457431,1746033032687,-151.0,0.00024425,2]
[359457434,1746033032697,-223.0315306,0.00024425,2]
[359457464,1746033033001,-503.0,0.00024603,2]
[359457465,1746033033023,-450.0,0.00025,2]
[359457466,1746033033033,-2688.68511302,0.0002521,5]
[359457467,1746033033046,-720.63172157,0.0002521,5]
[359457468,1746033033057,-762.17542217,0.0002521,5]
[359457469,1746033033068,-16.65558603,0.0002521,5]
[359457470,1746033033078,-151.0,0.00025794,2]
[359457471,1746033033088,-231.28369723,0.00025794,2]
[359457472,1746033033097,-867.06825136,0.00025938,3]
[359457473,1746033033106,-23.54327494,0.00026072,6]
[359457474,1746033033161,-434.77599026,0.00026072,6]
[359457485,1746033038288,-3529.32230931,0.00026072,6]
[359457657,1746033040329,-200.50626828,0.00026072,6]
[359457659,1746033040338,-4188.14784279,0.00026934,7]
[359457661,1746033040348,-500.0,0.00027,2]
[359457663,1746033040357,-151.0,0.00027163,2]
[359457665,1746033040366,-239.84119403,0.00027163,2]
[359457667,1746033040375,-704.0,0.00027397,2]
[359457669,1746033040384,-394.24,0.00027397,2]
[359457671,1746033040393,-893.89,0.00027398,2]
[359457673,1746033040402,-4188.14784279,0.00027797,7]
[359457675,1746033040411,-549.0,0.00027832,2]
[359457677,1746033040420,-1449.0,0.00027832,2]
[359457679,1746033040429,-2068.0,0.00027832,2]
[359457681,1746033040438,-580.0,0.00027832,2]
[359457683,1746033040447,-913.0,0.00027832,2]
[359457685,1746033040457,-151.0,0.00028532,2]
[359457687,1746033040466,-248.71531821,0.00028532,2]
[359457689,1746033040474,-4188.14784279,0.00028659,8]
[359457691,1746033040483,-205.29,0.00028939,2]
[359457693,1746033040492,-153.0,0.00028959,2]
[359457695,1746033040501,-4001.0,0.00028959,2]
[359457697,1746033040510,-6746.0,0.00028959,2]
[359457698,1746033040519,-528.954,0.00028959,2]
[359457700,1746033040528,-878.0,0.00028959,2]
[359457702,1746033040537,-550.0,0.00029,2]
[359457704,1746033040546,-1339.0,0.00029037,2]
[359457706,1746033040555,-922.0,0.00029037,2]
[359457708,1746033040564,-797.0,0.00029037,2]
[359457710,1746033040573,-1289.0,0.00029037,2]
[359457712,1746033040582,-253.22,0.00029079,2]
[359457714,1746033040592,-5827.9375,0.00029248,2]
[359457716,1746033040601,-4188.14784279,0.00029521,8]
[359457718,1746033040610,-893.89,0.00029662,2]
[359457720,1746033040620,-250.0,0.00029746,2]
[359457722,1746033040629,-163.71072806,0.00029901,2]
[359457724,1746033040638,-257.91778498,0.00029901,2]
[359457726,1746033040648,-160.34,0.0003,2]
[359457728,1746033040657,-1000.0,0.00030093,2]
[359457730,1746033040666,-150.44,0.00030137,2]
[359457732,1746033040675,-1000.0,0.00030137,2]
[359457734,1746033040684,-4188.14784279,0.00030383,9]
[359457736,1746033040693,-250.0,0.00030403,7]
[359457738,1746033040703,-580.0,0.00030832,2]
[359457740,1746033040712,-913.0,0.00030832,2]
[359457742,1746033040721,-179.37,0.00030936,2]
[359457744,1746033040732,-600.0,0.00031,2]
[359457746,1746033040741,-200.0,0.00031034,2]
[359457748,1746033040751,-23900.0,0.00031145,2]
[359457750,1746033040760,-3695.15485668,0.00031245,9]
[359457803,1746033043328,-492.99298611,0.00031245,9]
[359457804,1746033043338,-141.64344928,0.0003127,2]
[359457805,1746033043385,-125.81729375,0.0003127,2]
[359457806,1746033043400,-151.77,0.00031462,2]
[359457807,1746033043411,-893.89,0.00031926,2]
[359457808,1746033043421,-153.0,0.00031959,2]
[359457809,1746033043431,-2103.74521321,0.00031959,2]
[359457810,1746033043444,-305.38241179,0.00031959,2]
[359457811,1746033043598,-619.46749626,0.00031959,2]
[359457820,1746033122363,200.0,0.0003088,117]
[359457821,1746033122481,200.0,0.00029082,117]
[359457822,1746033122531,200.0,0.00030162,117]
[359457824,1746033661908,-198.784,0.00021687,2]
[359457825,1746033753230,-207.4,0.00021687,2]
[359457826,1746033793833,-215.0738,0.00023056,2]
[359457827,1746033808704,-223.0,0.00024425,2]
[359457828,1746033823831,-0.0315306,0.00024425,2]
[359457829,1746033823853,-1409.8467524,0.00025516,2]
[359457830,1746033838668,231.6,0.00019178,5]
[359457831,1746033891384,-200.0,0.00021,2]
[359457832,1746033919473,-150.0,0.00019999,2]
[359457833,1746033928797,429.63548534,0.00023,120]
[359457855,1746033933152,997.93123615,0.0002,120]
[359457856,1746033965952,998.45,0.0003,30]
[359457864,1746034036530,400.0,0.000193,7]
[359457865,1746034038647,800.0,0.000194,7]
[359457867,1746034040769,1300.0,0.000195,7]
[359457869,1746034042860,1700.0,0.000196,7]
[359457870,1746034044997,2200.0,0.000197,7]
[359457871,1746034047087,400.0,0.000198,7]
[359457872,1746034049261,400.0,0.000199,7]
[359457873,1746034125623,382.03886639,0.00013368,2]
[359457884,1746034202109,2000.0,0.0002,4]
[359457891,1746034232269,-496.41083977,0.00019749,2]
[359457892,1746034232323,-703.58916023,0.00019749,2]
[359457893,1746034232333,-300.0,0.00019749,2]
[359457894,1746034232343,-150.0,0.00019749,2]
[359457895,1746034232352,-259.44952368,0.00019749,2]
[359457896,1746034232361,-1084.43004486,0.0001975,2]
[359457897,1746034232372,-4668.46184484,0.0001975,2]
[359457898,1746034232392,-3517.8102665,0.0001975,2]
[359457899,1746034232539,-664.44611368,0.0001975,2]
[359457907,1746034238472,-11356.89387712,0.0001975,2]
[359457908,1746034238481,-4983.09173191,0.000199,2]
[359457909,1746034238490,-163.40133518,0.000199,2]
[359457910,1746034238499,-309.02175195,0.000199,2]
[359457911,1746034238508,-5000.0,0.000199,2]
[359457912,1746034238517,-155.96257902,0.000199,2]
[359457913,1746034238527,-161.93624588,0.000199,2]
[359457914,1746034238535,-3223.51058465,0.000199,2]
[359457915,1746034238544,-500.0,0.00019973,2]
[359457916,1746034238553,-611.0,0.00019973,2]
[359457917,1746034238562,-500.0,0.00019973,2]
[359457919,1746034238575,-500.0,0.00019973,2]
[359457920,1746034238584,-36567.83328489,0.0001998,2]
[359457921,1746034238593,-300.0,0.00019999,2]
[359457922,1746034238602,-150.0,0.00019999,2]
[359457923,1746034238612,-150.0,0.00019999,2]
[359457925,1746034238621,-500.0,0.00019999,2]
[359457927,1746034238630,-500.0,0.00019999,2]
[359457929,1746034238639,-500.0,0.00019999,2]
[359457931,1746034238649,-500.0,0.00019999,2]
[359457933,1746034238659,-500.0,0.00019999,2]
[359457934,1746034238668,-500.0,0.00019999,2]
[359457937,1746034238678,-470.5857518,0.00019999,2]
[359457939,1746034238687,-500.0,0.00019999,2]
[359457941,1746034238696,-500.0,0.00019999,2]
[359457943,1746034238705,-439.65539086,0.00019999,2]
[359457945,1746034238715,-500.0,0.00019999,2]
[359457947,1746034238724,-250.0,0.00019999,2]
[359457949,1746034238733,-4780988.34115865,0.0002,2]
[359457955,1746034238786,-24543.93363489,0.0002,2]
[359457957,1746034238797,-26788.76805,0.0002,2]
[359457960,1746034238809,-27828.78719035,0.0002,2]
[359457962,1746034238820,-8479.99999,0.0002,2]
[359457964,1746034238831,-5205.046792,0.0002,2]
[359457966,1746034238842,-5870.6985474,0.0002,2]
[359457968,1746034238853,-3760.84,0.0002,2]
[359458129,1746034240519,-677.74045867,0.0002,2]
[359458130,1746034240530,-560035.74563602,0.0002,2]
[359458131,1746034240579,-88304.06352936,0.0002,2]
[359458132,1746034240590,-434.15677188,0.0002,2]
[359458139,1746034243619,-616.18451476,0.0002,2]
[359458146,1746034246277,-375.54493704,0.000199,2]
[359458147,1746034246286,-1539.29904813,0.0002,2]
[359458148,1746034246351,-599.27117367,0.0002,2]
[359458149,1746034246362,-636.844821,0.0002,2]
[359458150,1746034246430,-871.48788782,0.0002,2]
[359458151,1746034246570,-640.63220535,0.0002,2]
[359458152,1746034246588,-7431.93082121,0.0002,2]
[359458155,1746034507094,281.06,0.0003287,60]
[359458156,1746034540583,158.32,0.00016712,2]
[359458157,1746034613450,212.09,0.00019313,2]
[359458158,1746034742034,250.0,0.00017,2]
[359458159,1746034743108,300.0,0.00019,2]
[359458160,1746034771352,1053.0,0.00030137,120]
[359458161,1746034820086,217.0,0.00032877,60]
[359458162,1746035139518,154.97487,0.00025516,35]
[359458178,1746035314176,1000.0,0.00030137,120]
[359458203,1746035431619,-1836.227,0.000196,2]
[359458204,1746035431629,-201.103,0.000196,2]
[359458205,1746035431639,-150.0,0.00019863,2]
[359458206,1746035431648,-1200.0,0.00019898,2]
[359458207,1746035431657,-300.0,0.00019899,2]
[359458208,1746035431667,-300.0,0.00019899,2]
[359458209,1746035431676,-4635.8633,0.000199,2]
[359458210,1746035431686,-150.12216249,0.000199,2]
[359458211,1746035431695,-2919.0752,0.000199,2]
[359458212,1746035431704,-450.3073,0.000199,2]
[359458213,1746035431714,-534.44203751,0.000199,2]
[359458214,1746035431750,-408.29759151,0.000199,2]
[359458215,1746035431782,-257.56134344,0.000199,2]
[359458231,1746035432157,-574.6,0.000199,2]
[359458279,1746035433685,-257.56134344,0.000199,3]
[359458284,1746035437538,-1031.75586833,0.000199,2]
[359458285,1746035437591,-9693.34315921,0.000199,2]
[359458286,1746035437602,-500.0,0.000199,2]
[359458287,1746035437612,-152.58665853,0.000199,2]
[359458288,1746035437622,-1986.5085,0.000199,2]
[359458289,1746035437631,-12500.0,0.000199,2]
[359458290,1746035437641,-618.53748871,0.000199,2]
[359458291,1746035437650,-461.21891265,0.000199,2]
[359458292,1746035437660,-2149.00705642,0.000199,2]
[359458293,1746035437670,-250.0,0.0001995,2]
[359458294,1746035437680,-200.0,0.0001995,2]
[359458295,1746035437689,-300.0,0.00019999,2]
[359458296,1746035437698,-300.0,0.00019999,2]
[359458297,1746035437707,-150.0,0.00019999,2]
[359458298,1746035437717,-150.0,0.00019999,2]
[359458299,1746035437727,-470.5857518,0.00019999,2]
[359458300,1746035437736,-500.0,0.00019999,2]
[359458301,1746035437746,-500.0,0.00019999,2]
[359458302,1746035437755,-481.89661726,0.00019999,2]
[359458303,1746035437765,-4733947.71011983,0.0002,2]
[359458304,1746035437774,-36872.193901,0.0002,2]
[359458305,1746035437796,-639.33092614,0.0002,2]
[359458307,1746035437825,-697.65935225,0.0002,2]
[359458479,1746035439699,-13457.64724703,0.0002,2]
[359458486,1746035439755,-40277.21759449,0.0002,2]
[359458488,1746035439764,-301.26767643,0.0002,2]
[359458490,1746035439774,-10000.0,0.0002,2]
[359458492,1746035439784,-1482.76242669,0.0002,2]
[359458494,1746035439794,-4303.89037235,0.0002,2]
[359458496,1746035439804,-481.2480226,0.0002,2]
[359458498,1746035439813,-50000.0,0.0002,2]
[359458500,1746035439822,-3053.43767458,0.0002,2]
[359458502,1746035439832,-4136.0,0.0002,2]
[359458504,1746035439841,-5653.07056109,0.0002,2]
[359458506,1746035439850,-52093.00093095,0.0002,2]
[359458508,1746035439861,-9420.68565653,0.0002,2]
[359458510,1746035439872,-1779.14000003,0.0002,2]
[359458520,1746035439960,-530.94269124,0.0002,2]
[359458527,1746035440065,-318549.66747896,0.0002,2]
[359458566,1746035442692,-80701.48559273,0.0002,2]
[359458569,1746035442704,-16286.67987686,0.0002,2]
[359458576,1746035442746,-507.53028692,0.0002,2]
[359458584,1746035442800,-5451.4257939,0.0002,2]
[359458586,1746035442812,-3268.2265522,0.0002,2]
[359458588,1746035442823,-515.811067,0.0002,2]
[359458589,1746035442835,-641.99246739,0.0002,2]
[359458591,1746035442846,-565.99524606,0.0002,2]
[359458594,1746035442873,-272.79509994,0.0002,2]
[359458596,1746035442884,-855.329631,0.0002,2]
[359458655,1746035445572,-300.21196048,0.0002,2]
[359458656,1746035445584,-39292.67442012,0.0002,2]
[359458657,1746035445678,-8099.43785469,0.0002,2]
[359458658,1746035445889,-109314.82239673,0.0002,2]
[359458660,1746035451769,-5000.0,0.0002,2]
[359458661,1746035453313,-5000.0,0.0002,2]
[359458662,1746035455229,-5000.0,0.0002,2]
[359458663,1746035455901,-5000.0,0.0002,2]
[359458664,1746035460229,-1000.0,0.0002,2]
[359458665,1746035466308,-300.0,0.00019999,2]
[359458666,1746035466334,-700.0,0.0002,2]
[359458667,1746035469417,-1000.0,0.0002,2]
[359458668,1746035473600,-281.47230038,0.00019999,2]
[359458669,1746035473627,-718.52769962,0.0002,2]
[359458670,1746035475149,-1000.0,0.0002,2]
[359458671,1746035478183,-700.0,0.0002,2]
[359458672,1746035499471,-3000.0,0.0002,2]
[359458673,1746035516404,-500.0,0.000199,2]
[359458674,1746035516433,-150.0,0.00019999,2]
[359458675,1746035516462,-1850.0,0.0002,2]
[359458676,1746035517700,-2500.0,0.0002,2]
[359458677,1746035518638,-2500.0,0.0002,2]
[359458678,1746035519404,-2500.0,0.0002,2]
[359458680,1746035948320,1788.69290499,0.00032877,60]
[359458681,1746036169181,164.21,0.0001584,2]
[359458687,1746036406446,1665.3483998,0.00032877,60]
[359458700,1746036544865,-218.63344187,0.00019405,2]
[359458702,1746036551956,250.0,0.00017,2]
[359458703,1746036553180,300.0,0.00019,2]
[359458704,1746036555675,-171.37176513,0.00019405,2]
[359458717,1746036565091,-397.344793,0.00019405,2]
[359458727,1746036631772,-390.005207,0.00019553,2]
[359458728,1746036631782,-1200.0,0.00019651,2]
[359458729,1746036631791,-300.0,0.00019651,2]
[359458730,1746036631802,-12110.094793,0.00019652,2]
[359458731,1746036631813,-298.1025574,0.00019652,2]
[359458732,1746036631932,-54426.70111917,0.00019652,2]
[359458733,1746036631942,-250.0,0.00019652,2]
[359458734,1746036631953,-404.03383351,0.00019827,2]
[359458735,1746036631962,-896.7283,0.000199,2]
[359458736,1746036631972,-225.0,0.000199,2]
[359458737,1746036631982,-589.25335091,0.000199,2]
[359458739,1746036631993,-456.00057192,0.000199,2]
[359458741,1746036632003,-153.12739739,0.000199,2]
[359458743,1746036632012,-1432.67137096,0.000199,2]
[359458745,1746036632023,-25225.45873857,0.000199,2]
[359458747,1746036632032,-10453.1362689,0.00019916,2]
[359458751,1746036632059,-1421.6045675,0.00019916,2]
[359459045,1746036637858,-470.5857518,0.00019899,2]
[359459046,1746036637867,-12025.2591636,0.00019916,2]
[359459047,1746036637878,-500.0,0.00019973,2]
[359459048,1746036637887,-402.41000989,0.00019973,2]
[359459049,1746036637897,-500.0,0.00019973,2]
[359459050,1746036637907,-500.0,0.00019973,2]
[359459051,1746036637917,-500.0,0.00019973,2]
[359459052,1746036637927,-611.0,0.00019973,2]
[359459053,1746036637937,-500.0,0.00019973,2]
[359459054,1746036637947,-500.0,0.00019973,2]
[359459055,1746036637957,-500.0,0.00019999,2]
[359459056,1746036637967,-500.0,0.00019999,2]
[359459057,1746036637976,-300.0,0.00019999,2]
[359459058,1746036637986,-1468.982,0.00019999,2]
[359459059,1746036637996,-150.0,0.00019999,2]
[359459060,1746036638006,-150.0,0.00019999,2]
[359459061,1746036638016,-500.0,0.00019999,2]
[359459062,1746036638026,-500.0,0.00019999,2]
[359459063,1746036638036,-500.0,0.00019999,2]
[359459064,1746036638046,-500.0,0.00019999,2]
[359459065,1746036638056,-500.0,0.00019999,2]
[359459066,1746036638066,-500.0,0.00019999,2]
[359459067,1746036638077,-500.0,0.00019999,2]
[359459068,1746036638088,-500.0,0.00019999,2]
[359459069,1746036638098,-500.0,0.00019999,2]
[359459070,1746036638109,-395.08640568,0.00019999,2]
[359459071,1746036638119,-500.0,0.00019999,2]
[359459072,1746036638129,-500.0,0.00019999,2]
[359459073,1746036638138,-344.56898518,0.00019999,2]
[359459074,1746036638148,-4478196.82558838,0.0002,2]
[359459075,1746036638158,-154.8194081,0.0002,2]
[359459076,1746036638168,-328401.0,0.0002,2]
[359459078,1746036638178,-98370.90743331,0.0002,2]
[359459175,1746036640368,-1754.61636949,0.0002,2]
[359459176,1746036640379,-312.43838185,0.0002,2]
[359459177,1746036640390,-804.51999999,0.0002,2]
[359459205,1746036646496,-3160.0,0.0002,2]
[359459206,1746036646507,-451.549825,0.0002,2]
[359459207,1746036646519,-1095.05000328,0.0002,2]
[359459211,1746036806258,-225.0,0.000199,2]
[359459212,1746036806285,-95.0,0.000199,2]
[359459213,1746036866296,168.70673,0.0002,23]
[359459215,1746037591115,1456.66476174,0.00015,2]
[359459233,1746037674721,8300.0,0.0002,4]
[359459234,1746037676699,12161.63169681,0.0001,2]
[359459235,1746037678361,17631.79799988,0.0002,4]
[359459236,1746037694904,2000.0,0.0001439,2]
[359459237,1746037696254,200.0,0.0001634,2]
[359459239,1746037725618,7026.05054145,0.00013368,2]
[359459275,1746037831973,-605.7001952,0.000196,2]
[359459276,1746037832135,-1008.6718048,0.000196,2]
[359459277,1746037832145,-193.38,0.000196,2]
[359459278,1746037832154,-172.97499744,0.000196,2]
[359459279,1746037832163,-250.0,0.00019609,2]
[359459280,1746037832173,-200.0,0.00019618,2]
[359459281,1746037832182,-200.0,0.00019635,2]
[359459282,1746037832192,-200.0,0.00019677,2]
[359459283,1746037832201,-300.0,0.0001974,2]
[359459284,1746037832211,-300.0,0.0001974,2]
[359459285,1746037832220,-300.0,0.0001974,2]
[359459286,1746037832230,-2000.0,0.00019741,2]
[359459287,1746037832240,-200.0,0.00019741,2]
[359459289,1746037832249,-3377.73133668,0.0001975,2]
[359459291,1746037832259,-1000.0,0.0001984,2]
[359459293,1746037832269,-247.26868813,0.0001984,2]
[359459325,1746037837957,-23652.73131187,0.0001984,2]
[359459326,1746037837967,-3251.41085204,0.00019889,2]
[359459327,1746037837976,-494.2533509,0.000199,2]
[359459328,1746037837986,-5200.39776765,0.000199,2]
[359459329,1746037837995,-153.12739739,0.000199,2]
[359459330,1746037838006,-153.73963755,0.000199,2]
[359459331,1746037838015,-5000.0,0.000199,2]
[359459332,1746037838026,-500.0,0.000199,2]
[359459333,1746037838036,-155.96257902,0.000199,2]
[359459334,1746037838047,-4457.65422251,0.000199,2]
[359459335,1746037838057,-11090.77669616,0.000199,2]
[359459336,1746037838067,-500.0,0.00019973,2]
[359459337,1746037838078,-611.0,0.00019973,2]
[359459338,1746037838089,-500.0,0.00019973,2]
[359459339,1746037838100,-500.0,0.00019973,2]
[359459340,1746037838109,-500.0,0.00019973,2]
[359459341,1746037838120,-500.0,0.00019973,2]
[359459342,1746037838131,-500.0,0.00019973,2]
[359459343,1746037838141,-500.0,0.00019973,2]
[359459344,1746037838152,-500.0,0.00019973,2]
[359459345,1746037838163,-36567.83328489,0.0001998,2]
[359459346,1746037838172,-10999.7197522,0.00019986,2]
[359459348,1746037838183,-5466.8689593,0.00019986,2]
[359459350,1746037838192,-3597.5444105,0.00019986,2]
[359459352,1746037838201,-670.0924046,0.00019986,2]
[359459354,1746037838211,-6591.18078243,0.0001999,2]
[359459356,1746037838222,-300.0,0.00019999,2]
[359459357,1746037838231,-500.0,0.00019999,2]
[359459359,1746037838241,-150.0,0.00019999,2]
[359459360,1746037838250,-150.0,0.00019999,2]
[359459362,1746037838259,-500.0,0.00019999,2]
[359459364,1746037838269,-500.0,0.00019999,2]
[359459366,1746037838279,-500.0,0.00019999,2]
[359459368,1746037838289,-500.0,0.00019999,2]
[359459370,1746037838299,-500.0,0.00019999,2]
[359459372,1746037838310,-500.0,0.00019999,2]
[359459374,1746037838319,-500.0,0.00019999,2]
[359459376,1746037838328,-500.0,0.00019999,2]
[359459378,1746037838338,-500.0,0.00019999,2]
[359459380,1746037838347,-439.65539086,0.00019999,2]
[359459382,1746037838356,-500.0,0.00019999,2]
[359459384,1746037838365,-500.0,0.00019999,2]
[359459386,1746037838374,-400.0,0.00019999,2]
[359459388,1746037838383,-1785673.18869591,0.0002,2]
[359459389,1746037838393,-2380.13733671,0.0002,2]
[359459391,1746037838403,-151.0,0.0002,2]
[359459393,1746037838412,-3129743.66466058,0.0002,2]
[359459395,1746037838424,-3895.83733095,0.0002,2]
[359459398,1746037838442,-3303.16733092,0.0002,2]
[359459400,1746037838453,-4152.76677269,0.0002,2]
[359459575,1746037840302,-494.78444651,0.0002,2]
[359459586,1746037840410,-6973.92076482,0.0002,2]
[359459608,1746037843264,-264.1959424,0.0002,2]
[359459609,1746037843276,-1551.18491712,0.0002,2]
[359459627,1746037845869,-1986.5085,0.000199,2]
[359459628,1746037845880,-845.4915,0.0002,2]
[359459629,1746037845978,-552.49999274,0.0002,2]
[359459630,1746037846250,-21405.06067308,0.0002,2]
[359459639,1746037914007,-161.93624588,0.000199,2]
[359459640,1746037914032,-163.57518955,0.000199,2]
[359459641,1746037914055,-500.0,0.00019973,2]
[359459642,1746037914077,-470.5857518,0.00019979,2]
[359459643,1746037914099,-2703.90281277,0.00019986,2]
[359459644,1746037923820,-2000.0,0.00019986,2]
[359459645,1746037930145,-913.36661723,0.00019986,2]
[359459646,1746037930166,-1086.63338277,0.00019986,2]
[359459647,1746037936795,-2000.0,0.00019986,2]
[359459649,1746037943239,-2000.0,0.00019986,2]
[359459650,1746037948764,-2000.0,0.00019986,2]
[359459651,1746037956019,-2000.0,0.000199,2]
[359459652,1746037962705,-2000.0,0.000199,2]
[359459653,1746037974624,-683.47024321,0.000199,2]
[359459654,1746037974646,-0.52975679,0.00019986,2]
[359459655,1746037983269,-300.0,0.00019985,2]
[359459656,1746037983291,-1700.0,0.00019986,2]
[359459657,1746037989915,-2000.0,0.000199,2]
[359459658,1746037996004,-2000.0,0.00019826,2]
[359459659,1746038002706,-2000.0,0.000199,2]
[359459660,1746038008054,-200.0,0.00019826,2]
[359459661,1746038008079,-1800.0,0.000199,2]
[359459662,1746038013919,-2000.0,0.000199,2]
[359459663,1746038070615,-300.0,0.00019899,2]
[359459664,1746038070637,-1.0,0.000199,2]
[359459665,1746038076569,-152.73963755,0.000199,2]
[359459666,1746038076591,-1847.26036245,0.000199,2]
[359459667,1746038082551,-2000.0,0.000199,2]
[359459668,1746038088928,-2000.0,0.000199,2]
[359459669,1746038094969,-2000.0,0.000199,2]
[359459670,1746038125991,-300.0,0.00019899,2]
[359459671,1746038126014,-1200.0,0.00019899,2]
[359459672,1746038126036,-300.0,0.00019899,2]
[359459673,1746038144275,-300.0,0.00019899,2]
[359459674,1746038144298,-1700.0,0.000199,2]
[359459675,1746038160160,-2000.0,0.000199,2]
[359459676,1746038280465,604.96,0.00025211,120]
[359459677,1746038280699,604.96,0.00027732,120]
[359459678,1746038280901,604.96,0.00030253,120]
[359459679,1746038314883,1122.46,0.00017862,2]
[359459680,1746038361049,250.0,0.00017,2]
[359459681,1746038362147,300.0,0.00019,2]
[359459682,1746038454867,-194.65874869,0.0001937,2]
[359459683,1746038459903,-300.06725612,0.0001937,2]
[359459684,1746038465138,-342.90057299,0.0001937,2]
[359459685,1746038470970,-152.86,0.0001937,2]
[359459686,1746038474198,-9.5134222,0.0001937,2]
[359459687,1746038474387,208.51139513,0.00019251,2]
[359459688,1746038474413,23691.48860487,0.00019251,2]
[359459689,1746038595409,2000.0,0.00019097,2]
[359459690,1746038608376,200.0,0.00019097,2]
[359459691,1746038669328,300.067256,0.00019234,2]
[359459707,1746038933099,250.0,0.00019196,2]
[359459708,1746038933690,-164.43,0.00019331,2]
[359459709,1746038933713,-85.57,0.00019444,2]
[359459710,1746038942647,-114.43,0.00019444,2]
[359459712,1746038973518,250.0,0.00019432,7]
[359459713,1746039002360,2000.0,0.0002,4]
[359459715,1746039012367,185.51,0.00019246,2]
[359459716,1746039012550,156.54,0.0001913,2]
[359459725,1746039032280,-185.51,0.00019342,2]
[359459726,1746039032290,-114.49,0.00019711,2]
[359459759,1746039038098,-85.51,0.00019711,2]
[359459760,1746039038111,-200.0,0.00019816,2]
[359459761,1746039038121,-150.0,0.00019863,2]
[359459762,1746039038130,-300.0,0.00019885,2]
[359459763,1746039038139,-300.0,0.00019885,2]
[359459764,1746039038150,-5545.38834815,0.00019886,2]
[359459765,1746039038160,-1200.0,0.00019886,2]
[359459766,1746039038169,-300.0,0.00019886,2]
[359459767,1746039038179,-869.8198,0.00019886,2]
[359459768,1746039038189,-627.34257753,0.00019887,2]
[359459769,1746039038205,-265.7565572,0.00019887,2]
[359459770,1746039038216,-5698.0816477,0.00019887,2]
[359459771,1746039038227,-171.30961755,0.00019888,2]
[359459772,1746039038239,-5374.07873053,0.00019888,2]
[359459773,1746039038248,-137.11311894,0.00019889,2]
[359459774,1746039038259,-1237.74503275,0.00019889,2]